bitfinex-derivatives/quotes_BTCF0:USTF0_20250811
["timestamp","ask_amount","ask_price","bid_price","bid_amount"]
[1754944611034,0.4449698,118940.0,118930.0,1.27249143]
[1754944611644,0.5158398,118940.0,118930.0,1.27249143]
[1754944611841,0.5370898,118940.0,118930.0,1.27249143]
[1754944612840,0.4449698,118940.0,118930.0,1.27249143]
[1754944613046,0.0841698,118940.0,118930.0,1.27249143]
[1754944613347,0.0841698,118940.0,118930.0,1.42359431]
[1754944613543,0.1762898,118940.0,118930.0,1.42359431]
[1754944613845,0.0841698,118940.0,118930.0,1.78439431]
[1754944617246,0.0841698,118940.0,118930.0,1.63329143]
[1754944618151,0.0841698,118940.0,118930.0,1.78439431]
[1754944618647,0.0841698,118940.0,118930.0,1.42359431]
[1754944618843,0.0841698,118940.0,118930.0,1.78439431]
[1754944620152,0.0841698,118940.0,118930.0,1.39537978]
[1754944620444,0.0841698,118940.0,118930.0,1.78439431]
[1754944622747,0.1762898,118940.0,118930.0,1.39537978]
[1754944622944,0.1762898,118940.0,118930.0,1.63329143]
[1754944623145,0.1762898,118940.0,118930.0,0.84345143]
[1754944623346,0.1762898,118940.0,118930.0,1.63269143]
[1754944625156,0.1762898,118940.0,118930.0,1.2436769]
[1754944625655,0.1762898,118940.0,118930.0,1.63269143]
[1754944627756,0.0986498,118940.0,118930.0,1.63269143]
[1754944631157,0.01458,118940.0,118930.0,1.63269143]
[1754944631358,0.08417,118940.0,118930.0,1.63269143]
[1754944636364,0.0001,118940.0,118930.0,1.63269143]
[1754944636563,0.08417,118940.0,118930.0,1.63269143]
[1754944639966,0.0001,118940.0,118930.0,1.63269143]
[1754944640168,0.0841699,118940.0,118930.0,1.2436769]
[1754944640466,0.0841699,118940.0,118930.0,1.63269143]
[1754944641569,0.0841699,118940.0,118930.0,1.2436769]
[1754944641762,0.0841699,118940.0,118930.0,1.63269143]
[1754944642965,0.1322999,118940.0,118930.0,1.63269143]
[1754944643274,0.1772499,118940.0,118930.0,1.63269143]
[1754944644568,0.1203999,118940.0,118930.0,1.2436769]
[1754944644771,0.92706443,118940.0,118930.0,0.876737]
[1754944644970,0.92706443,118940.0,118930.0,0.882197]
[1754944653181,0.97891443,118940.0,118930.0,0.882197]
[1754944655679,0.5898999,118940.0,118930.0,0.882197]
[1754944655886,0.61811443,118940.0,118930.0,0.882197]
[1754944656080,0.2290999,118940.0,118930.0,0.882197]
[1754944656582,0.1155999,118940.0,118930.0,0.882197]
[1754944656779,0.5530629,118940.0,118930.0,1.31966]
[1754944656981,0.1155999,118940.0,118930.0,1.31966]
[1754944657380,0.6445029,118940.0,118930.0,1.31966]
[1754944657578,0.6665629,118940.0,118930.0,1.68046]
[1754944658588,0.6665629,118940.0,118930.0,1.31966]
[1754944660796,0.2290999,118940.0,118930.0,0.882197]
[1754944661799,0.2290999,118940.0,118930.0,1.03329988]
[1754944662594,0.2290999,118940.0,118930.0,0.882197]
[1754944663501,0.5898999,118940.0,118930.0,0.882197]
[1754944663701,0.97877361,118940.0,118930.0,0.882197]
[1754944664097,0.61797361,118940.0,118930.0,0.882197]
[1754944664299,0.2290999,118940.0,118930.0,0.882197]
[1754944666594,0.1722499,118940.0,118930.0,0.882197]
[1754944666795,0.2268599,118940.0,118930.0,0.882197]
[1754944668495,0.1722499,118940.0,118930.0,0.882197]
[1754944668991,0.2044699,118940.0,118930.0,0.882197]
[1754944669303,0.2268599,118940.0,118930.0,0.882197]
[1754944669695,0.2268599,118940.0,118930.0,1.242997]
[1754944670097,0.0001,118940.0,118930.0,1.63187071]
[1754944670803,0.03259,118940.0,118930.0,1.63187071]
[1754944674902,0.1166602,118940.0,118930.0,1.63187071]
[1754944677810,0.03259,118940.0,118930.0,1.63187071]
[1754944678012,0.1166602,118940.0,118930.0,1.63187071]
[1754944678201,0.03259,118940.0,118930.0,1.63187071]
[1754944679012,0.1166603,118940.0,118930.0,1.63187071]
[1754944680618,0.1166603,118940.0,118930.0,1.68041529]
[1754944680814,0.03259,118940.0,118930.0,1.68041529]
[1754944681218,0.0001,118940.0,118930.0,1.68041529]
[1754944682614,0.03249,118950.0,118940.0,0.0840703]
[1754944682813,0.03249,118950.0,118940.0,0.88548859]
[1754944683018,0.03249,118950.0,118940.0,0.88748859]
[1754944684212,0.03249,118950.0,118940.0,0.88948859]
[1754944684411,0.03259,118950.0,118940.0,0.88958859]
[1754944684611,0.0001,118950.0,118940.0,0.88958859]
[1754944685113,0.03259,118950.0,118940.0,0.88958859]
[1754944685308,0.0001,118950.0,118940.0,1.32700688]
[1754944685812,0.03249,118960.0,118940.0,1.49504278]
[1754944686119,0.03249,118960.0,118950.0,2.10851978]
[1754944686914,0.70682986,118980.0,118960.0,0.08405]
[1754944687114,0.79740986,118980.0,118970.0,1.31028729]
[1754944687321,0.88767267,118980.0,118970.0,1.31038729]
[1754944687824,0.92016267,118980.0,118970.0,1.31038729]
[1754944688322,0.92116267,118980.0,118970.0,1.31038729]
[1754944688623,0.48374438,118980.0,118970.0,0.872969]
[1754944688821,0.48674438,118980.0,118970.0,0.876009]
[1754944689322,0.48674438,118980.0,118970.0,0.88441739]
[1754944689622,0.48474438,118980.0,118970.0,0.88441739]
[1754944690325,0.48374438,118980.0,118970.0,0.88541739]
[1754944690520,0.87238651,118980.0,118970.0,0.872069]
[1754944690823,0.87238651,118980.0,118970.0,0.873969]
[1754944691123,0.87238651,118980.0,118970.0,0.877009]
[1754944692323,1.23318651,118980.0,118970.0,0.877009]
[1754944693826,0.87238651,118980.0,118970.0,0.877009]
[1754944695123,0.48374438,118980.0,118970.0,0.877009]
[1754944695528,0.84454438,118980.0,118970.0,0.877009]
[1754944702831,0.48374438,118980.0,118970.0,0.877009]
[1754944705838,0.48374438,118980.0,118970.0,1.26565113]
[1754944706330,0.48374438,118980.0,118970.0,0.877009]
[1754944708740,0.46647001,118980.0,118970.0,0.877009]
[1754944709144,0.46647001,118980.0,118970.0,0.872069]
[1754944709440,0.46647001,118980.0,118970.0,0.877009]
[1754944709841,0.85511214,118980.0,118970.0,0.877009]
[1754944710042,0.85511214,118980.0,118970.0,0.873969]
[1754944710644,0.90372358,118980.0,118970.0,0.873969]
[1754944713548,1.26452358,118980.0,118970.0,1.31426257]
[1754944714149,1.26452358,118980.0,118970.0,0.877009]
[1754944714636,1.70177715,118980.0,118970.0,0.877009]
[1754944715142,0.82727001,118980.0,118970.0,1.31426257]
[1754944715339,1.26452358,118980.0,118970.0,1.31426257]
[1754944715544,0.90372358,118980.0,118970.0,1.31426257]
[1754944715946,0.38242191,118980.0,118970.0,0.52734257]
[1754944716150,0.35954191,118980.0,118970.0,1.31278257]
[1754944716357,0.81779548,118980.0,118970.0,1.67358257]
[1754944716550,0.68101748,118980.0,118970.0,1.67358257]
[1754944716748,0.22089391,118980.0,118970.0,1.67358257]
[1754944716960,0.65814748,118980.0,118970.0,1.31278257]
[1754944717159,0.65814748,118980.0,118970.0,1.67358257]
[1754944717464,0.73306748,118980.0,118970.0,1.31278257]
[1754944717866,0.29581391,118980.0,118970.0,1.31278257]
[1754944718067,0.73306748,118980.0,118970.0,1.31278257]
[1754944718968,0.29581391,118980.0,118970.0,1.31278257]
[1754944719164,0.73306748,118980.0,118970.0,1.31278257]
[1754944723169,0.73306748,118980.0,118970.0,0.875529]
[1754944723364,0.73306748,118980.0,118970.0,1.31278257]
[1754944728568,0.29581391,118980.0,118970.0,1.31278257]
[1754944728773,0.73306748,118980.0,118970.0,1.31278257]
[1754944729876,0.0006,118980.0,118970.0,2.11083614]
[1754944730374,0.0006,118980.0,118970.0,1.67358257]
[1754944730573,0.02989,118980.0,118970.0,1.67358257]
[1754944730874,0.02989,118980.0,118970.0,1.236329]
[1754944731076,0.02989,118980.0,118970.0,1.67358257]
[1754944732072,0.0006,118980.0,118970.0,1.67358257]
[1754944732675,0.02989,118980.0,118970.0,1.82468545]
[1754944732976,0.02989,118980.0,118970.0,1.38743188]
[1754944733371,0.02989,118980.0,118970.0,1.82468545]
[1754944734276,0.03165935,118980.0,118970.0,1.82468545]
[1754944735077,0.03165935,118980.0,118970.0,1.67358257]
[1754944736078,0.03171632,118980.0,118970.0,1.67358257]
[1754944737875,0.03171632,118980.0,118970.0,0.88814257]
[1754944738078,0.64044109,118980.0,118970.0,1.31206257]
[1754944738277,0.66113109,118980.0,118970.0,1.67286257]
[1754944738479,0.22387752,118980.0,118970.0,1.67286257]
[1754944739074,0.17035702,118980.0,118970.0,1.67286257]
[1754944739273,0.08631632,118980.0,118970.0,1.67286257]
[1754944739473,0.04564632,118980.0,118970.0,1.67286257]
[1754944739673,0.03171632,118980.0,118970.0,1.67286257]
[1754944739874,0.03171632,118980.0,118970.0,1.82396545]
[1754944740179,0.11575732,118980.0,118970.0,1.82396545]
[1754944740380,0.66113089,118980.0,118970.0,1.38671188]
[1754944740577,0.22387732,118980.0,118970.0,1.82396545]
[1754944740777,0.66113089,118980.0,118970.0,1.82396545]
[1754944741173,0.22387732,118980.0,118970.0,1.82396545]
[1754944741368,0.13983632,118980.0,118970.0,1.82396545]
[1754944741568,0.03171632,118980.0,118970.0,1.235609]
[1754944741778,0.03171632,118980.0,118970.0,1.67286257]
[1754944742281,0.17035742,118980.0,118970.0,1.67282257]
[1754944742478,0.66113099,118980.0,118970.0,1.67282257]
[1754944743883,0.13983632,118980.0,118970.0,1.67282257]
[1754944744186,0.03171632,118980.0,118970.0,1.67282257]
[1754944745882,0.11823632,118980.0,118970.0,1.67282257]
[1754944746192,0.11814226,118980.0,118970.0,1.67282257]
[1754944747786,0.66103693,118980.0,118970.0,1.67282257]
[1754944750086,0.22378336,118980.0,118970.0,1.67282257]
[1754944750283,0.66103693,118980.0,118970.0,1.67282257]
[1754944750588,0.22378336,118980.0,118970.0,1.67282257]
[1754944751186,0.22378336,118980.0,118970.0,1.82392545]
[1754944753592,0.22378336,118980.0,118970.0,1.67282257]
[1754944758196,0.17026336,118980.0,118970.0,1.67282257]
[1754944760299,0.14866336,118980.0,118970.0,1.67282257]
[1754944762601,0.14866336,118980.0,118970.0,1.235569]
[1754944762900,0.14866336,118980.0,118970.0,1.67282257]
[1754944763198,0.20292336,118980.0,118970.0,1.67282257]
[1754944764102,0.22415336,118980.0,118970.0,1.67282257]
[1754944765604,0.16989336,118980.0,118970.0,1.67282257]
[1754944765901,0.14866336,118980.0,118970.0,1.67282257]
[1754944766804,0.11566336,118980.0,118970.0,1.67282257]
[1754944767101,0.11566286,118980.0,118970.0,1.67282257]
[1754944767297,0.03162226,118980.0,118970.0,1.67282257]
[1754944767490,0.11566286,118980.0,118970.0,1.67282257]
[1754944769303,0.03162226,118980.0,118970.0,1.67282257]
[1754944769704,0.00233226,118980.0,118970.0,2.11007614]
[1754944770492,0.00233226,118980.0,118970.0,2.26117902]
[1754944771305,0.00233226,118980.0,118970.0,2.11007614]
[1754944773003,0.00233226,118980.0,118970.0,2.26088546]
[1754944774008,0.00233226,118980.0,118970.0,1.38637832]
[1754944774308,0.2520912,119000.0,118990.0,0.0840335]
[1754944774506,0.3598512,119000.0,118990.0,1.66654707]
[1754944775105,0.3894912,119000.0,118990.0,1.66654707]
[1754944775810,0.3924912,119000.0,118990.0,1.66654707]
[1754944777210,0.3934912,119000.0,118990.0,1.66654707]
[1754944778407,0.3904912,119000.0,118990.0,1.2292935]
[1754944778610,0.3904912,119000.0,118990.0,1.66654707]
[1754944779212,0.3894912,119000.0,118990.0,1.66854707]
[1754944779511,0.3894912,119000.0,118990.0,1.81935639]
[1754944780505,0.3054581,119000.0,118990.0,1.81935639]
[1754944782813,0.3054581,119000.0,118990.0,1.66854707]
[1754944783413,0.2214272,119000.0,118990.0,1.66854707]
[1754944783914,0.2214272,119000.0,118990.0,1.2312935]
[1754944784213,0.2214272,119000.0,118990.0,1.66854707]
[1754944785709,0.2214272,119000.0,118990.0,1.2312935]
[1754944785914,0.2214272,119000.0,118990.0,1.66854707]
[1754944786612,0.65868077,119000.0,118990.0,1.66854707]
[1754944787711,0.65868077,119000.0,118990.0,1.2312935]
[1754944787912,0.65868077,119000.0,118990.0,1.66854707]
[1754944789016,0.65868077,119000.0,118990.0,1.2312935]
[1754944789205,0.65868077,119000.0,118990.0,1.66854707]
[1754944790917,0.65868077,119000.0,118990.0,1.2318936]
[1754944791419,1.01948077,119000.0,118990.0,0.8710936]
[1754944792518,0.65868077,119000.0,118990.0,0.8710936]
[1754944792717,1.01948077,119000.0,118990.0,0.8710936]
[1754944793215,0.65868077,119000.0,118990.0,1.30834717]
[1754944794418,0.2214272,119000.0,118990.0,0.8710936]
[1754944799624,0.2214272,119000.0,118990.0,1.2318936]
[1754944799927,0.1136665,119000.0,118990.0,1.62040263]
[1754944800321,0.1136665,119000.0,118990.0,1.2318936]
[1754944800527,0.1982165,119000.0,118990.0,1.62040263]
[1754944801226,0.06669029,119010.0,118990.0,1.78846503]
[1754944801422,0.249949,119030.0,119010.0,0.3360668]
[1754944801727,0.1907484,119030.0,119020.0,1.61764143]
[1754944802020,0.25638594,119030.0,119020.0,1.2291324]
[1754944802233,0.28542594,119030.0,119020.0,1.2291324]
[1754944803933,0.28842594,119030.0,119020.0,1.61764143]
[1754944804136,0.28942594,119030.0,119020.0,1.61764143]
[1754944804431,0.28942594,119030.0,119020.0,1.2291324]
[1754944804636,0.28942594,119030.0,119020.0,1.61764143]
[1754944805237,0.28842594,119030.0,119020.0,1.2291324]
[1754944805440,0.28742594,119030.0,119020.0,1.2291324]
[1754944806338,0.28742594,119030.0,119020.0,1.2375932]
[1754944810542,0.28742594,119030.0,119020.0,1.62610223]
[1754944810741,0.28742594,119030.0,119020.0,1.2375932]
[1754944814249,1.00902594,119030.0,119020.0,0.8767932]
[1754944814549,1.39753497,119030.0,119020.0,0.8767932]
[1754944814743,0.67593497,119030.0,119020.0,0.8767932]
[1754944819153,0.28742594,119030.0,119020.0,0.8767932]
[1754944819554,0.67593497,119030.0,119020.0,0.8767932]
[1754944821149,0.28742594,119030.0,119020.0,0.8767932]
[1754944825156,0.67593497,119030.0,119020.0,0.8767932]
[1754944828259,0.67393497,119030.0,119020.0,0.8767932]
[1754944828455,0.67493497,119030.0,119020.0,0.8767932]
[1754944828655,0.28642594,119030.0,119020.0,0.8777932]
[1754944830662,0.72328125,119030.0,119020.0,1.31464851]
[1754944832464,0.72328125,119030.0,119020.0,0.8777932]
[1754944832663,0.72328125,119030.0,119020.0,1.31464851]
[1754944835169,0.28642594,119030.0,119020.0,1.31464851]
[1754944835364,0.72328125,119030.0,119020.0,1.31464851]
[1754944835563,0.09567754,119030.0,119020.0,1.31464851]
[1754944835764,0.17968284,119030.0,119020.0,1.67544851]
[1754944839165,0.15064284,119030.0,119020.0,1.67544851]
[1754944839359,0.17922284,119030.0,119020.0,1.67544851]
[1754944840764,0.001,119030.0,119020.0,1.67544851]
[1754944842670,0.001,119030.0,119020.0,1.62674384]
[1754944844382,0.001,119030.0,119020.0,1.79477584]
[1754944849167,0.02987,119030.0,119020.0,1.62674384]
[1754944850483,0.02987,119030.0,119020.0,1.2385932]
[1754944850778,0.02987,119030.0,119020.0,1.62674384]
[1754944851276,0.02987,119030.0,119020.0,1.2385932]
[1754944851580,0.02987,119030.0,119020.0,1.62674384]
[1754944851886,0.001,119030.0,119020.0,1.62674384]
[1754944853481,0.001,119030.0,119020.0,1.79477584]
[1754944854083,0.001,119030.0,119020.0,1.8621124]
[1754944856576,0.001,119030.0,119020.0,1.6940804]
[1754944856781,0.001,119030.0,119020.0,1.8621124]
[1754944857281,0.001,119030.0,119020.0,1.8755924]
[1754944857582,0.001,119030.0,119020.0,1.7075604]
[1754944860781,0.001,119030.0,119020.0,1.31940976]
[1754944860989,0.001,119030.0,119020.0,1.7075604]
[1754944861586,0.001,119030.0,119020.0,0.9097604]
[1754944861784,0.50991604,119030.0,119020.0,0.4542732]
[1754944861995,0.50991604,119030.0,119020.0,1.2512732]
[1754944861996,0.56400604,119030.0,119020.0,1.2512732]
[1754944862183,0.1758554,119030.0,119020.0,1.2512732]
[1754944864383,0.1758554,119030.0,119020.0,1.63942384]
[1754944864883,0.1758554,119030.0,119020.0,1.2512732]
[1754944865085,0.1758554,119030.0,119020.0,1.63942384]
[1754944865487,0.09185,119030.0,119020.0,1.63942384]
[1754944866685,0.001,119030.0,119020.0,1.63942384]
[1754944868090,0.001,119030.0,119020.0,1.79023316]
[1754944870491,0.001,119030.0,119020.0,1.63942384]
[1754944871793,0.001,119030.0,119020.0,1.78994743]
[1754944873102,0.001,119030.0,119020.0,1.95797943]
[1754944874609,0.001,119030.0,119020.0,2.02589392]
[1754944877813,0.001,119030.0,119020.0,1.85786192]
[1754944881714,0.05474,119050.0,119040.0,0.0839983]
[1754944882013,0.08829,119050.0,119040.0,1.62612894]
[1754944882911,0.08829,119050.0,119040.0,1.62712894]
[1754944883314,0.08929,119050.0,119040.0,1.62712894]
[1754944888415,0.001,119050.0,119040.0,1.62712894]
[1754944889009,0.06817,119050.0,119040.0,1.62712894]
[1754944889817,0.01343,119050.0,119040.0,1.62712894]
[1754944890521,0.001,119050.0,119040.0,1.62712894]
[1754944891013,0.001,119050.0,119040.0,1.2389783]
[1754944891213,0.001,119050.0,119040.0,1.98792894]
[1754944892022,0.06817,119050.0,119040.0,1.98792894]
[1754944892413,0.08929,119050.0,119040.0,1.98792894]
[1754944895722,0.01343,119050.0,119040.0,1.98792894]
[1754944895922,0.001,119050.0,119040.0,1.98792894]
[1754944897728,0.001,119050.0,119040.0,2.37607958]
[1754944899224,0.001,119050.0,119040.0,1.5997783]
[1754944899531,0.001,119050.0,119040.0,2.37607958]
[1754944901626,0.001,119050.0,119040.0,2.52660317]
[1754944902324,0.001,119050.0,119040.0,2.37607958]
[1754944902921,0.12199453,119070.0,119060.0,0.0839843]
[1754944903125,0.15554453,119070.0,119060.0,1.98347494]
[1754944904225,0.15754453,119070.0,119060.0,1.98347494]
[1754944905126,0.01443,119070.0,119060.0,1.98347494]
[1754944905929,0.01243,119070.0,119060.0,1.98347494]
[1754944906130,0.03286,119070.0,119060.0,1.98347494]
[1754944906330,0.03286,119070.0,119060.0,1.98447494]
[1754944906928,0.01343,119070.0,119060.0,1.98447494]
[1754944908836,0.01343,119070.0,119060.0,2.13499853]
[1754944909337,0.001,119070.0,119060.0,2.13499853]
[1754944911230,0.001,119070.0,119060.0,1.98447494]
[1754944913145,0.05315,119100.0,119090.0,0.2518774]
[1754944913432,0.1725664,119100.0,119090.0,1.79172804]
[1754944913638,0.08861,119100.0,119090.0,1.79172804]
[1754944914037,0.1725665,119100.0,119090.0,1.4035774]
[1754944915128,0.08861,119100.0,119090.0,1.4035774]
[1754944915331,0.09061,119100.0,119090.0,1.79172804]
[1754944915932,0.09161,119100.0,119090.0,1.79172804]
[1754944916633,0.09161,119100.0,119090.0,1.80003849]
[1754944916828,0.1755665,119100.0,119090.0,1.80003849]
[1754944917034,0.1755665,119100.0,119090.0,1.41188785]
[1754944917233,0.09161,119100.0,119090.0,1.80003849]
[1754944917441,0.03846,119100.0,119090.0,1.80003849]
[1754944918342,0.003,119100.0,119090.0,1.80003849]
[1754944919941,0.001,119100.0,119090.0,1.80003849]
[1754944920140,0.003,119100.0,119090.0,1.80003849]
[1754944920736,0.003,119100.0,119090.0,1.92682748]
[1754944924940,0.68320819,119130.0,119120.0,0.0839425]
[1754944924941,0.36108,119130.0,119120.0,0.0839425]
[1754944925144,0.08889,119130.0,119120.0,1.62475314]
[1754944925344,0.08889,119130.0,119120.0,1.75154213]
[1754944926540,0.09189,119130.0,119120.0,1.75154213]
[1754944926835,0.09289,119130.0,119120.0,1.75154213]
[1754944927147,0.1768254,119130.0,119120.0,1.75154213]
[1754944927346,0.09289,119130.0,119120.0,1.75154213]
[1754944927535,0.24382449,119130.0,119120.0,1.75154213]
[1754944928947,0.15988909,119130.0,119120.0,1.75154213]
[1754944929544,0.15988909,119130.0,119120.0,0.95978213]
[1754944929750,0.99277513,119130.0,119120.0,0.12688899]
[1754944929946,1.16066313,119130.0,119120.0,0.91808899]
[1754944930250,1.16066313,119130.0,119120.0,1.00203149]
[1754944933654,1.16066313,119130.0,119120.0,0.91808899]
[1754944933841,1.18594211,119130.0,119120.0,1.00203149]
[1754944934346,1.18594211,119130.0,119120.0,0.07183899]
[1754944934347,1.23740346,119130.0,119120.0,0.07183899]
[1754944934653,1.23740346,119130.0,119120.0,0.85659149]
[1754944935153,1.23740774,119130.0,119120.0,0.77264899]
[1754944935654,1.23740774,119130.0,119120.0,0.85659149]
[1754944935852,1.23750774,119130.0,119120.0,0.85669149]
[1754944936753,1.23750774,119130.0,119120.0,0.98348048]
[1754944938857,1.18750774,119130.0,119120.0,0.98348048]
[1754944939055,1.01961974,119130.0,119120.0,1.00671048]
[1754944939254,1.01961974,119130.0,119120.0,1.04096048]
[1754944940051,0.99433648,119130.0,119120.0,1.04096048]
[1754944941058,0.60618584,119130.0,119120.0,1.05895048]
[1754944942157,0.99433648,119130.0,119120.0,1.05895048]
[1754944943854,0.99433648,119130.0,119120.0,1.04096048]
[1754944945665,0.99433648,119130.0,119120.0,1.05895048]
[1754944946465,0.60618584,119130.0,119120.0,1.05895048]
[1754944946764,0.99433648,119130.0,119120.0,1.05895048]
[1754944951476,0.60618584,119130.0,119120.0,1.05895048]
[1754944952067,2.10618584,119130.0,119120.0,1.05895048]
[1754944952267,0.60618584,119130.0,119120.0,1.05895048]
[1754944952469,0.99333648,119130.0,119120.0,1.05895048]
[1754944952665,0.99333648,119130.0,119120.0,1.05995048]
[1754944952862,2.49333648,119130.0,119120.0,1.05995048]
[1754944953066,2.49033648,119130.0,119120.0,1.06095048]
[1754944956869,2.45757648,119130.0,119120.0,1.04296048]
[1754944957066,2.47591648,119130.0,119120.0,1.06095048]
[1754944958172,2.08776584,119130.0,119120.0,1.06095048]
[1754944958373,2.47591648,119130.0,119120.0,1.06095048]
[1754944961372,2.08776584,119130.0,119120.0,1.06095048]
[1754944961772,2.47591648,119130.0,119120.0,1.06095048]
[1754944962176,2.08776584,119130.0,119120.0,1.06095048]
[1754944962473,2.47591648,119130.0,119120.0,1.06095048]
[1754944966469,2.4928488,119130.0,119120.0,0.91840899]
[1754944969071,2.10469816,119130.0,119120.0,0.91840899]
[1754944969278,2.4928488,119130.0,119120.0,0.91840899]
[1754944969771,3.2817688,119130.0,119120.0,0.12888899]
[1754944969973,0.0839496,119110.0,119100.0,0.167911]
[1754944970173,0.88487024,119110.0,119100.0,0.956431]
[1754944970379,0.91750024,119110.0,119100.0,0.961655]
[1754944970678,0.91750024,119110.0,119100.0,0.942435]
[1754944970874,0.91750024,119110.0,119100.0,0.895265]
[1754944971270,0.91750024,119110.0,119100.0,0.144195]
[1754944971471,0.91760024,119110.0,119100.0,0.932615]
[1754944971880,0.91760024,119110.0,119100.0,0.945495]
[1754944972081,0.91760024,119110.0,119100.0,0.964555]
[1754944972278,0.96292024,119110.0,119100.0,0.964555]
[1754944972679,0.5747696,119110.0,119100.0,0.967555]
[1754944973180,0.96292024,119110.0,119100.0,1.09434399]
[1754944973981,1.10232024,119110.0,119100.0,1.09434399]
[1754944974179,0.96292024,119110.0,119100.0,1.09434399]
[1754944982987,1.32372024,119110.0,119100.0,1.09434569]
[1754944983282,1.52574024,119110.0,119100.0,0.13288899]
[1754944983485,1.52574024,119110.0,119100.0,0.92404899]
[1754944983789,1.35782024,119110.0,119100.0,0.92404899]
[1754944984380,1.35782024,119110.0,119100.0,0.13288899]
[1754944984684,1.35882024,119110.0,119100.0,0.92084899]
[1754944986288,1.35982024,119110.0,119100.0,0.91784899]
[1754944989090,1.49922024,119110.0,119100.0,0.91784899]
[1754944991489,1.49922024,119110.0,119100.0,0.91636899]
[1754944991693,1.49922024,119110.0,119100.0,0.95117899]
[1754944991995,1.49922024,119110.0,119100.0,0.97356899]
[1754944994301,1.46512024,119110.0,119100.0,0.97356899]
[1754944995195,1.46512024,119110.0,119100.0,0.18408899]
[1754944995396,1.46512024,119110.0,119100.0,0.97248899]
[1754944997504,0.0839638,119090.0,119080.0,0.1679371]
[1754944997688,0.88531444,119090.0,119080.0,0.9911171]
[1754944997995,0.96469444,119090.0,119080.0,1.0259271]
[1754944998204,0.96469444,119090.0,119080.0,1.0443671]
[1754944998899,0.96469444,119090.0,119080.0,0.2573671]
[1754944999105,0.96479444,119090.0,119080.0,1.0453871]
[1754944999300,0.96479444,119090.0,119080.0,1.0463871]
[1754945000009,0.96479444,119090.0,119080.0,1.0459871]
[1754945000610,0.96479444,119090.0,119080.0,1.17277609]
[1754945005806,0.96479444,119090.0,119080.0,0.38525609]
[1754945006006,0.96479444,119090.0,119080.0,1.17149609]
[1754945007009,0.5766438,119090.0,119080.0,1.17149609]
[1754945007306,0.96479444,119090.0,119080.0,1.17149609]
[1754945009204,0.2158438,119090.0,119080.0,1.17149609]
[1754945009408,0.60399444,119090.0,119080.0,1.17149609]
[1754945010510,0.96479444,119090.0,119080.0,1.17149609]
[1754945012704,1.01309187,119090.0,119080.0,1.17149609]
[1754945014307,1.01309187,119090.0,119080.0,0.36681609]
[1754945014512,1.01309187,119090.0,119080.0,0.38525609]
[1754945014711,1.0298638,119090.0,119080.0,0.19887899]
[1754945014913,1.0298638,119090.0,119080.0,0.98507899]
[1754945015214,1.03845259,119090.0,119080.0,0.98507899]
[1754945016713,0.99004405,119090.0,119080.0,0.98507899]
[1754945017105,0.99004405,119090.0,119080.0,1.00351899]
[1754945023021,0.98145526,119090.0,119080.0,1.00351899]
[1754945026632,0.59341573,119090.0,119080.0,1.00351899]
[1754945026925,0.60164322,119090.0,119080.0,1.00351899]
[1754945028731,0.74104322,119090.0,119080.0,1.00351899]
[1754945033338,0.74104322,119090.0,119080.0,0.19887899]
[1754945033528,0.74104322,119090.0,119080.0,0.12888899]
[1754945033731,1.51712228,119090.0,119080.0,0.12888899]
[1754945034426,1.12908275,119090.0,119080.0,0.12888899]
[1754945034836,0.74104322,119090.0,119080.0,0.12888899]
[1754945035032,1.12908275,119090.0,119080.0,0.12888899]
[1754945035925,1.91512275,119090.0,119080.0,0.12888899]
[1754945040740,1.12908275,119090.0,119080.0,0.21551899]
[1754945044941,1.12908275,119090.0,119080.0,0.19679899]
[1754945047434,0.74104322,119090.0,119080.0,0.19679899]
[1754945047744,1.12908275,119090.0,119080.0,0.19679899]
[1754945048342,1.08264275,119090.0,119080.0,0.19679899]
[1754945048646,1.1311816,119090.0,119080.0,0.19679899]
[1754945049641,1.56775998,119090.0,119080.0,0.19679899]
[1754945050143,1.1311816,119090.0,119080.0,0.19679899]
[1754945052043,0.69460322,119090.0,119080.0,0.19679899]
[1754945052244,1.56775998,119090.0,119080.0,0.19679899]
[1754945053147,1.1311816,119090.0,119080.0,0.19679899]
[1754945058452,0.69460322,119090.0,119080.0,0.19679899]
[1754945058650,1.1311816,119090.0,119080.0,0.19679899]
[1754945061751,0.68637573,119090.0,119080.0,0.63438737]
[1754945061962,1.03296218,119090.0,119080.0,0.73715757]
[1754945062359,1.06706218,119090.0,119080.0,0.30057919]
[1754945062856,1.08565218,119090.0,119080.0,0.30057919]
[1754945063059,1.11770218,119090.0,119080.0,0.30057919]
[1754945065148,1.11770218,119090.0,119080.0,0.3091039]
[1754945066255,1.11770218,119090.0,119080.0,0.2251337]
[1754945066652,1.11770218,119090.0,119080.0,0.3091036]
[1754945070164,1.11770218,119090.0,119080.0,0.30057889]
[1754945070660,1.11770218,119090.0,119080.0,0.30915503]
[1754945074460,1.11770218,119090.0,119080.0,0.74573341]
[1754945075551,1.11770218,119090.0,119080.0,0.30915503]
[1754945075754,1.11770218,119090.0,119080.0,0.74573341]
[1754945078664,1.11770218,119090.0,119080.0,0.30915503]
[1754945080768,1.11770218,119090.0,119080.0,0.74573341]
[1754945081164,1.11770218,119090.0,119080.0,0.30057889]
[1754945081670,1.11770218,119090.0,119080.0,0.91428899]
[1754945081969,1.5710717,119090.0,119080.0,0.91428899]
[1754945082265,2.3564317,119090.0,119080.0,0.12888899]
[1754945082869,1.91985332,119090.0,119080.0,0.12888899]
[1754945083069,1.13449332,119090.0,119080.0,0.12888899]
[1754945083566,1.13449332,119090.0,119080.0,0.12688899]
[1754945083567,1.13649332,119090.0,119080.0,0.12688899]
[1754945084068,1.13549332,119090.0,119080.0,0.12688899]
[1754945084279,1.13549332,119090.0,119080.0,0.18410899]
[1754945084764,1.08694687,119090.0,119080.0,0.12688899]
[1754945085265,1.08594687,119090.0,119080.0,0.12688899]
[1754945086067,1.05184687,119090.0,119080.0,0.12688899]
[1754945091068,1.05184687,119090.0,119080.0,0.12788899]
[1754945091469,1.05184687,119090.0,119080.0,0.12688899]
[1754945097774,0.69104687,119090.0,119080.0,0.12688899]
[1754945097976,1.43540687,119090.0,119080.0,0.12688899]
[1754945099081,1.43540687,119090.0,119080.0,0.16139899]
[1754945099374,1.43540687,119090.0,119080.0,0.18410899]
[1754945099579,1.04737494,119090.0,119080.0,0.18410899]
[1754945100273,1.04737494,119090.0,119080.0,0.14959899]
[1754945100274,1.0305838,119090.0,119080.0,0.14959899]
[1754945100478,0.5303838,119090.0,119080.0,0.68566022]
[1754945100782,0.5303838,119090.0,119080.0,0.29762829]
[1754945101769,0.5303838,119090.0,119080.0,1.08274829]
[1754945102378,0.5303838,119090.0,119080.0,1.08474829]
[1754945104985,0.91841573,119090.0,119080.0,1.08474829]
[1754945105686,0.5303838,119090.0,119080.0,1.08474829]
[1754945108389,0.5741038,119090.0,119080.0,1.08474829]